Cogmind - Beta 13 @@@ ROGUE MODE // 2024.05.04 @ 21:09:58 Player: Cheeriohz Result: Destroyed by G-73 Enforcer with Phase Gun Performance ------------- Evolutions (9) 4500 Regions Visited (30) 6000 Robots Destroyed (275) 1375 Value Destroyed (16100) 16100 Prototype IDs (22) 440 Alien Tech Used (0) 0 Bonus (13844) 13844 TOTAL SCORE: 42259 Bonus ------- High Alert Combat Kills 1484 Follower Combat Kills 6698 Entered Garrisons 1800 Used RIF Installer 5500 Friendly Fire -1638 Cogmind --------- Core Integrity 0/1600 Matter 253/300 Energy 98/100 System Corruption 26% Temperature Cool (9) Movement Core (50) Location -1/Garrison Parts ------- > --- POWER (2) -------- (None) > --- PROPULSION (4) --- (None) > --- UTILITY (16) ----- Advanced Signal Interpreter Advanced Targeting Computer Relay Coupler [NC] (10) Relay Coupler [C] (23) Relay Coupler [C] (3) Relay Coupler [C] (52) Relay Coupler [Demolisher] (26) > --- WEAPON (3) ------- (None) > --- INVENTORY (5) ---- Light Quantum Reactor Huge Storage Unit Peak State ------------ > --- POWER ------------ Reinforced Antimatter Reactor Quantum Reactor > --- PROPULSION ------- Advanced Heavy Siege Treads High-density Centrium Wheel High-density Centrium Wheel > --- UTILITY ---------- Advanced Heat Sink Huge Storage Unit Advanced Weight Redist. System Advanced Targeting Computer Advanced ECM Suite Hardened Medium Armor Plating Layered Medium Armor Plating Improved Energy Mantle Relay Coupler [NC] Relay Coupler [Swarmer] Relay Coupler [Grunt] Relay Coupler [Brawler] Relay Coupler [Demolisher] Relay Coupler [Specialist] Relay Coupler [Heavy] Relay Coupler [Behemoth] > --- WEAPON ----------- Heavy Linear Accelerator Advanced Remote Datajack > --- INVENTORY -------- Light Antimatter Reactor Particle Reactor Light Quantum Reactor Improved Treads Advanced Heavy Siege Treads Wheel Compact Wheel Armored Wheel High-density Centrium Wheel Combat Linear Gravjet Combat Linear Gravjet Advanced Heat Sink Huge Storage Unit Improved Energy Mantle Antimissile System Antimissile System Relay Coupler [Grunt] Relay Coupler [Sentry] Advanced Remote Datajack [Rating: 153] Favorites ----------- Power Reinforced Antimatter Reactor Engine Heavy Ion Engine Power Core Neutrino Core Reactor Reinforced Antimatter Reactor Propulsion Armored Wheel Treads Light Treads Leg Aluminum Leg Wheel Armored Wheel Hover Unit Combat Linear Gravjet Utility Relay Coupler [Sentry] Device Advanced Heat Sink Storage Huge Storage Unit Processor Machine Analyzer Hackware Relay Coupler [Sentry] Protection Hardened Medium Armor Plating Weapon Enhanced Nova Cannon Energy Gun Heavy Laser Energy Cannon Enhanced Nova Cannon Ballistic Gun Shotgun Ballistic Cannon Linear Accelerator Launcher Proton Missile Launcher Special Weapon Improved Remote Datajack Impact Weapon Power Maul Piercing Weapon Spear Special Melee Weapon Datajack Build | -11 -10 -10 -9 -9 -8 -8 -8 -8 -7 -7 -6 -6 -6 -6 -5 -5 -5 -4 -4 -4 -4 -4 -3 -3 -3 -3 -2 -2 -1 -1 ------- Run | Yrd Mat Min Mat Min Mat Gar Mat Gar Fac Gar Fac Was Fac Gar Fac Upp Upp Fac Gar Fac Upp Upp Res Gar Res Gar Res Gar Acc Gar Slots Evolved 18 | . . . 2 . 2 . . . 2 . 2 . . . 2 . . 2 . . . . 2 . . . 2 . 2 . Power 1 | . . . . . . . . . . . . . . . . . . . . . . . 1 . . . . . . . Propulsion 2 | . . . . . . . . . . . . . . . . . . . . . . . . . . . . . 2 . Utility 14 | . . . 2 . 1 . . . 2 . 2 . . . 2 . . 2 . . . . 1 . . . 2 . . . Weapon 1 | . . . . . 1 . . . . . . . . . . . . . . . . . . . . . . . . . Parts Attached 546 | 2 15 6 26 6 12 39 27 29 41 13 7 5 13 45 44 2 5 22 35 12 8 1 5 37 5 23 11 24 26 . Power 55 | . 2 . 2 1 1 1 . 2 1 3 1 . 1 5 5 . . 4 5 . . . 2 2 . 4 4 7 2 . Engine 14 | . 2 . 1 1 1 1 . . 1 1 . . . 4 1 . . 1 . . . . . . . . . . . . Core 11 | . . . 1 . . . . 2 . . 1 . . . 3 . . 1 2 . . . 1 . . . . . . . Reactor 30 | . . . . . . . . . . 2 . . 1 1 1 . . 2 3 . . . 1 2 . 4 4 7 2 . Propulsion 79 | . 3 2 2 1 . 2 2 3 9 . . . . 6 4 . 2 4 5 4 . . . 10 . 3 1 4 12 . Treads 19 | . 3 . . . . . . 1 6 . . . . . . . . . . . . . . 2 . 1 . . 6 . Leg 2 | . . . . . . . . . . . . . . 2 . . . . . . . . . . . . . . . . Wheel 54 | . . 2 2 1 . 2 2 1 3 . . . . 4 3 . 2 4 5 4 . . . 8 . 2 1 4 4 . Hover 4 | . . . . . . . . 1 . . . . . . 1 . . . . . . . . . . . . . 2 . Flight . | . . . . . . . . . . . . . . . . . . . . . . . . . . . . . . . Utility 207 | 1 4 2 10 4 7 15 6 10 14 7 6 2 2 12 16 1 1 10 18 3 2 . 3 14 5 7 4 11 10 . Device 89 | 1 . 2 9 2 2 5 1 1 4 2 2 2 1 3 6 1 . 7 8 2 2 . 3 6 4 3 2 4 4 . Storage 11 | . 2 . . . . . . . . . 1 . . . 4 . 1 1 1 . . . . . . . . . 1 . Processor 6 | . . . . . 1 . . . 1 . . . . . . . . 1 . . . . . 1 . . . 1 1 . Hackware 60 | . . . . . . 1 3 6 5 5 2 . . 9 5 . . 1 7 1 . . . 4 1 4 . 3 3 . Protection 41 | . 2 . 1 2 4 9 2 3 4 . 1 . 1 . 1 . . . 2 . . . . 3 . . 2 3 1 . Artifact . | . . . . . . . . . . . . . . . . . . . . . . . . . . . . . . . Weapon 205 | 1 6 2 12 . 4 21 19 14 17 3 . 3 10 22 19 1 2 4 7 5 6 1 . 11 . 9 2 2 2 . Energy Gun 19 | . . . . . . . . . 2 . . 1 . 2 5 1 . . . . 2 . . 3 . 1 2 . . . Energy Cannon 23 | . . . . . . . . 1 2 . . 2 4 3 3 . 1 . 1 1 1 . . 4 . . . . . . Ballistic Gun 28 | 1 4 1 6 . 4 9 . . 2 . . . . . . . . . . . 1 . . . . . . . . . Ballistic Cannon 24 | . . . 2 . . . 4 5 3 . . . . 3 . . . 2 . 2 . . . . . 1 . 2 . . Launcher 24 | . 1 1 3 . . 3 2 3 3 . . . . 2 3 . . 1 . 1 . . . 1 . . . . . . Special Weapon 52 | . . . . . . 7 6 5 3 1 . . 3 6 4 . . 1 4 1 1 1 . 3 . 4 . . 2 . Impact Weapon 24 | . 1 . 1 . . 2 3 . 2 2 . . 3 6 3 . . . . . 1 . . . . . . . . . Slashing Weapon . | . . . . . . . . . . . . . . . . . . . . . . . . . . . . . . . Piercing Weapon 7 | . . . . . . . . . . . . . . . 1 . 1 . 2 . . . . . . 3 . . . . Special Melee Weapon 4 | . . . . . . . 4 . . . . . . . . . . . . . . . . . . . . . . . Unidentified Prototypes 9 | . . 1 1 . 2 . . . 1 1 . . . . 1 . . . . . . . . 1 . 1 . . . . Corrupted Parts 3 | . . 1 . . . . . . . . . . . 2 . . . . . . . . . . . . . . . . System Corruption 22 | . . 10 . . . . . . . . . . . 12 . . . . . . . . . . . . . . . . Parts Lost 155 | . . . 3 . . 4 4 7 11 2 . 1 2 11 26 . 6 5 6 6 3 . . 10 . 12 . 11 23 2 Power 17 | . . . . . . . . 1 1 1 . . 1 2 2 . . 1 1 . . . . . . 3 . 2 2 . Propulsion 36 | . . . 1 . . 1 1 2 3 . . . . 2 3 . 2 2 1 2 . . . 5 . 2 . 3 6 . Utility 67 | . . . 2 . . 3 2 2 4 1 . . 1 4 13 . 1 2 3 1 1 . . 3 . 4 . 6 12 2 Weapon 35 | . . . . . . . 1 2 3 . . 1 . 3 8 . 3 . 1 3 2 . . 2 . 3 . . 3 . Highest Loss Streak 19 | . . . 2 . . 3 2 2 7 2 . 1 2 7 12 . 6 1 2 3 3 . . 4 . 8 . 11 19 1 To Critical Strikes 3 | . . . . . . . . . . . . . . . 1 . . . . 1 . . . . . . . . 1 . Average Slot Usage (%) 91 | . 99 99 99 99 99 98 98 85 92 86 90 88 86 80 80 95 88 97 93 90 92 94 94 92 95 87 90 89 86 34 Engine 3 | . 14 14 7 1 9 9 9 1 4 1 . . . 2 2 . . 1 . . . . . . . . . . . . Core 1 | . . . 3 9 . . . 7 2 . 5 6 3 . . 5 5 . 1 . . . 3 2 . . . . . . Reactor 2 | . . . . . . . . . . 5 . . 2 2 2 . . 2 2 5 5 5 4 6 9 8 8 7 7 . Treads 3 | . 19 23 . . . . . 2 7 . . . . . . . . . . . . . . . . 1 . . 4 . Wheel 9 | . . 4 21 22 18 17 17 9 5 7 6 6 6 6 9 11 10 9 9 9 10 10 9 7 9 5 5 7 5 . Device 11 | . 4 4 27 18 17 11 10 . 8 . 5 6 8 3 7 12 12 21 18 15 20 21 23 19 17 14 12 15 9 2 Storage 8 | . 14 14 11 11 9 9 9 9 7 7 6 6 6 6 11 23 24 17 8 5 5 5 4 4 4 4 4 . 3 . Processor 3 | . . . . . 5 8 . . 6 7 6 6 6 6 1 . . 4 5 5 5 5 4 3 . . . 3 4 8 Hackware 21 | . . . . . . . 14 22 21 32 32 33 25 29 24 17 17 16 26 30 31 31 28 29 34 40 43 39 36 24 Protection 5 | . 9 9 5 14 12 14 10 6 5 . 4 6 6 2 1 5 5 5 2 2 . . . 2 4 . 2 4 6 . Energy Gun 1 | . . . . . . . . . . . . 4 . 1 4 16 2 . . . 2 5 4 2 . . 4 . . . Energy Cannon 2 | . . . . . . . . 4 5 . . 2 8 6 1 . 4 2 4 4 4 5 4 6 9 1 . . . . Ballistic Gun 6 | . 27 28 18 22 26 21 1 . . 1 . . . . . . . . . . . . . . . . . . . . Ballistic Cannon 1 | . . . 2 . . . 11 5 1 . . . . 2 . . . 5 3 1 . . . . . 2 . 3 3 . Special Weapon 2 | . . . . . . 3 5 6 3 5 6 1 4 1 1 . . 1 4 6 2 4 4 3 4 3 4 4 3 . Impact Weapon 2 | . . . . . . 1 6 9 6 14 13 5 4 2 2 . . . . . 1 . . . . . . . . . Naked Turns . | . . . . . . . . . . . . . . . . . . . . . . . . . . . . . . . Heaviest Build 195 | 12 54 59 62 73 82 77 83 84 82 73 113 124 138 138 139 122 121 153 149 144 138 138 159 176 167 165 160 178 195 3 Greatest Support 160 | 20 40 40 22 22 22 22 24 22 56 28 28 28 28 32 32 20 26 26 32 24 22 22 22 80 24 80 26 32 160 3 Greatest Overweight (x) 34 | . 2 5 6 3 3 6 5 8 7 2 4 4 4 33 34 6 4 14 5 11 6 6 7 16 6 8 9 9 6 . Average Overweight (x) 3 | . . 1 2 2 3 2 2 6 3 1 2 3 3 3 4 5 4 5 4 5 5 6 6 7 6 4 7 2 1 . Largest Inventory Capacity 25 | 8 20 20 20 20 20 20 20 20 20 20 25 25 25 25 25 25 25 25 25 25 25 25 25 25 25 25 25 25 25 5 Average Capacity 21 | 8 18 20 20 20 20 20 20 20 20 20 20 25 25 25 24 25 25 25 25 25 25 25 25 25 25 25 25 8 22 5 Most Carried 25 | 8 20 20 20 20 20 20 20 20 20 20 21 25 25 25 25 25 25 25 25 25 25 25 24 25 25 25 25 25 22 2 Average Carried 20 | 7 17 20 19 19 19 19 19 19 18 19 20 24 24 24 22 25 22 24 24 24 24 24 23 23 24 23 24 8 12 2 Final Capacity 25 | 8 20 20 20 20 20 20 20 20 20 20 25 25 25 25 25 25 25 25 25 25 25 25 25 25 25 25 25 5 5 5 Final Carried 25 | 8 20 20 20 20 20 20 19 20 19 20 21 25 25 25 25 25 21 25 25 25 25 25 24 25 25 24 25 5 2 2 Class Distribution -------------------- 21% | Bothacker-Mutant 20% | Botlord-Mutant 18% | Mutant 13% | Botlord-Gunner 9% | Botlord-Tank 4% | Tank 3% | Scavenger-Mutant Dominant Class ---------------- Mutant | -10/Materials Mutant | -10/Mines Mutant | -9/Materials Mutant | -9/Mines Gunner | -8/Materials Tank | -8/Garrison Bothacker-Mutant | -8/Materials Bothacker-Mutant | -8/Garrison Bothacker-Mutant | -7/Factory Bothacker-Mutant | -7/Garrison Bothacker-Mutant | -6/Factory Bothacker-Mutant | -6/Waste Bothacker-Mutant | -6/Factory Botlord-Mutant | -6/Garrison Botlord-Mutant | -5/Factory Botlord-Tank | -5/Upper Caves Botlord-Mutant | -5/Upper Caves Botlord-Mutant | -4/Factory Botlord-Mutant | -4/Garrison Botlord-Gunner | -4/Factory Botlord-Mutant | -4/Upper Caves Botlord-Skirmisher | -4/Upper Caves Botlord-Skirmisher | -3/Research Botlord-Gunner | -3/Garrison Botlord-Gunner | -3/Research Botlord-Gunner | -3/Garrison Botlord-Mutant | -2/Research Botlord-Tank | -2/Garrison Botlord-Tank | -1/Access Mutant | -1/Garrison Resources | -11 -10 -10 -9 -9 -8 -8 -8 -8 -7 -7 -6 -6 -6 -6 -5 -5 -5 -4 -4 -4 -4 -4 -3 -3 -3 -3 -2 -2 -1 -1 ----------- Run | Yrd Mat Min Mat Min Mat Gar Mat Gar Fac Gar Fac Was Fac Gar Fac Upp Upp Fac Gar Fac Upp Upp Res Gar Res Gar Res Gar Acc Gar Matter Collected 12219 | 225 488 242 601 127 249 1000 464 717 442 393 85 87 152 935 762 57 40 434 813 228 68 36 96 659 13 601 398 886 804 117 Remotely 44 | . . . 44 . . . . . . . . . . . . . . . . . . . . . . . . . . . Salvage Created 12172 | 177 789 70 742 146 203 1051 432 531 900 304 . 212 289 757 526 54 171 679 1225 169 85 36 96 1204 65 554 263 272 170 . Parts 598 | 13 47 11 47 4 10 86 22 27 27 4 . 1 2 35 29 2 6 34 52 13 3 5 2 40 5 36 14 10 11 . Haulers Intercepted 6 | . 2 . 3 . 1 . . . . . . . . . . . . . . . . . . . . . . . . . Recyclers Shooed 4 | . 3 . . . . . . . . . . . 1 . . . . . . . . . . . . . . . . . Parts Field Recycled . | . . . . . . . . . . . . . . . . . . . . . . . . . . . . . . . Retrieved Matter . | . . . . . . . . . . . . . . . . . . . . . . . . . . . . . . . Parts Self-Destructed 16 | . . . . . . . . . . . . . . . . 2 2 . . . 9 3 . . . . . . . . Prevented . | . . . . . . . . . . . . . . . . . . . . . . . . . . . . . . . Kills | -11 -10 -10 -9 -9 -8 -8 -8 -8 -7 -7 -6 -6 -6 -6 -5 -5 -5 -4 -4 -4 -4 -4 -3 -3 -3 -3 -2 -2 -1 -1 ------- Run | Yrd Mat Min Mat Min Mat Gar Mat Gar Fac Gar Fac Was Fac Gar Fac Upp Upp Fac Gar Fac Upp Upp Res Gar Res Gar Res Gar Acc Gar Combat Hostiles Destroyed 227 | . 17 4 20 . 2 38 10 16 25 4 . 1 1 13 11 1 2 11 10 2 1 . 1 16 2 8 . 6 5 . Melee 15 | . . . . . . 2 2 2 2 1 . . 1 1 . . . . . . . . . . . 4 . . . . Guns 66 | . 17 1 13 . 2 28 . . 1 . . . . . 3 1 . . . . . . . . . . . . . . Cannons 79 | . . . 1 . . . 3 7 4 . . . . 9 6 . 1 8 10 2 1 . 1 9 2 4 . 6 5 . AOE 48 | . . 3 6 . . 8 4 6 12 . . . . 2 2 . . 1 . . . . . 4 . . . . . . Classes Destroyed 25 | 2 6 . 2 . . 3 1 3 2 . . 1 . 1 . . 1 . . . . . . 1 . 1 . . 1 . Worker 13 | . 2 1 . 1 . . 2 . 1 . . . . . . . . 1 . 2 . . . . . . 3 . . . Builder 12 | . 2 . 1 . . . 1 . 3 . . . . . 1 . . 1 . . . . . . . . 1 . 2 . Tunneler 9 | 5 . . 1 . . . . . . . . . . . 1 . . 1 . . . . . . . . 1 . . . Hauler 6 | . 2 . 3 . 1 . . . . . . . . . . . . . . . . . . . . . . . . . Recycler 11 | 1 2 . . 1 . . 2 . 2 . . . 2 . . . . . . . . . . . . . 1 . . . Mechanic 1 | . . . 1 . . . . . . . . . . . . . . . . . . . . . . . . . . . Operator 1 | . 1 . . . . . . . . . . . . . . . . . . . . . . . . . . . . . Watcher 1 | . . . . . . . 1 . . . . . . . . . . . . . . . . . . . . . . . Swarmer 55 | . 6 3 7 . 1 16 2 3 1 . . . . 1 3 . . . 4 . . . . 3 2 2 . . 1 . Cutter 1 | . . . . . . . . . . . . . . . . . . . . . . . . . . . . . 1 . Saboteur 6 | . . . . . . 6 . . . . . . . . . . . . . . . . . . . . . . . . Grunt 86 | . 11 1 7 . 3 11 8 8 7 . . . . 8 4 . . 8 3 . 1 . . 5 . . . 1 . . Brawler 1 | . . . . . . . . 1 . . . . . . . . . . . . . . . . . . . . . . Duelist 1 | . . . . . . . . . . . . . . 1 . . . . . . . . . . . . . . . . Sentry 11 | . . . 6 . . 4 . . . 1 . . . . . . . . . . . . . . . . . . . . Demolisher 2 | . . . . . . . . . 2 . . . . . . . . . . . . . . . . . . . . . Specialist 2 | . . . . . . 1 . . . . . . . . . . . . 1 . . . . . . . . . . . Hunter 5 | . . . . . . 1 . . . . . . . . . . . . . 1 . . . 2 . . . 1 . . Programmer 43 | . . . . . . . . 3 1 3 . . 1 5 4 1 2 3 4 1 . . . 4 . 4 . 4 3 . Behemoth 2 | . . . . . . . . 1 . . . . . . . . . . . . . . 1 . . . . . . . Compactor 1 | . . . . . . . . . . . . 1 . . . . . . . . . . . . . . . . . . Striker 2 | . . . . . . . . . . . . . . . . . . . . . . . . . . 2 . . . . Executioner 2 | . . . . . . . . . . . . . . . . . . . . . . . . 2 . . . . . . Decomposer 1 | . . . . . . . . . . . . . . . . . . . . . 1 . . . . . . . . . Samaritan 2 | . . . . . . . . . . . . . . . . . 1 . . . . 1 . . . . . . . . Assembled 14 | . . . . . . . . . 14 . . . . . . . . . . . . . . . . . . . . . Infiltrator 1 | . . . . . . . . . . . . . . . . . . . 1 . . . . . . . . . . . Best Kill Streak 10 | 3 5 3 8 1 1 10 9 7 8 2 . 1 3 3 5 1 2 7 2 2 1 . 1 6 2 3 2 4 2 . Combat Bots Only 10 | . 5 3 6 . 1 10 4 7 7 2 . 1 1 3 5 1 2 6 2 1 1 . 1 6 2 3 . 4 1 . Max Kills in Single Turn 4 | 1 2 3 4 1 1 3 3 2 4 1 . 1 1 2 2 1 1 1 1 1 1 1 1 2 1 1 1 1 1 . Gunslinging 1 | . 1 . . . . 1 . . . . . . . . . . . . . . . . . . . . . . . . Exploded 4 | . . 3 3 . . 3 2 2 4 . . . . 2 2 . . 1 . . . . . 2 . . . . . . Melee 2 | . . . . . . 2 1 1 1 1 . . 1 1 . . . . . . . . . . . 1 . . . . Uniques/NPCs Destroyed . | . . . . . . . . . . . . . . . . . . . . . . . . . . . . . . . Combat | -11 -10 -10 -9 -9 -8 -8 -8 -8 -7 -7 -6 -6 -6 -6 -5 -5 -5 -4 -4 -4 -4 -4 -3 -3 -3 -3 -2 -2 -1 -1 -------- Run | Yrd Mat Min Mat Min Mat Gar Mat Gar Fac Gar Fac Was Fac Gar Fac Upp Upp Fac Gar Fac Upp Upp Res Gar Res Gar Res Gar Acc Gar Hostile Shots Fired 2280 | . 48 7 64 . 12 172 109 93 168 40 28 1 54 197 135 6 29 60 120 97 12 2 . 135 2 101 4 136 415 33 Missed 682 | . 16 3 15 . 3 48 35 18 50 14 10 . 18 45 39 2 9 19 44 26 3 1 . 50 1 20 1 41 140 11 Intercepted 1 | . . . . . . . . . . . . . . . . . . . . . . . . . . . . . 1 . Damage Taken 28860 | . 392 62 549 45 151 1197 1044 927 2098 395 106 51 543 2332 1974 81 416 655 1049 1526 262 22 . 1796 67 2592 64 2251 5748 465 Core 5082 | . 46 . 63 . . 203 138 119 295 79 19 . 76 306 534 30 49 85 115 445 17 22 . 226 . 427 . 179 1178 431 Absorbed by Shields 2581 | . . . 52 . . 244 202 . . 18 27 . 55 321 137 . . 227 183 . . . . 12 . 322 . 25 719 37 Reduced by Siege Mode 280 | . . . . . . . . . . . . . . . . . . . . . . . . . . 280 . . . . Redirected to Shielding 94 | . . . 12 4 . . . . . . . . . . 13 11 18 33 3 . . . . . . . . . . . Ignored by Resistances 44 | . . . . . . . . . . . . . . . . . . . . . . . . 7 . . . . 37 . Regen/Repaired (Parts) 118 | . 43 . . . . . . . . . . . . . 75 . . . . . . . . . . . . . . . Core Remaining (%) 59 | 100 . 81 . 84 . . . 16 . 46 . . . 52 . . 38 . . . . 40 . . . 49 . 87 . . Volleys Fired 1227 | 15 50 5 50 4 14 65 36 55 61 18 5 16 22 96 73 2 13 39 142 41 19 3 5 134 13 69 30 62 70 . Largest 3 | 2 2 2 2 2 3 3 2 2 2 1 1 2 2 2 2 3 3 2 1 2 1 1 1 1 1 1 1 1 1 . Hottest 207 | 70 46 46 58 46 71 73 96 155 120 5 5 165 120 180 150 207 207 132 120 186 120 120 120 120 120 120 94 83 83 . Shots Fired 1602 | 30 99 8 96 8 42 182 45 70 76 18 5 25 26 122 85 7 21 45 143 43 20 3 5 133 15 67 30 63 70 . Gun 539 | 30 98 6 83 8 42 179 . . 8 . . 9 . 7 26 7 12 . . . . . . 18 . . 6 . . . Cannon 646 | . . . 9 . . . 22 41 45 . . 16 9 79 33 . 9 39 104 26 15 1 4 83 11 44 . 30 26 . Launcher 52 | . 1 2 4 . . 3 9 10 7 . . . . 4 3 . . 4 . . 1 . . 4 . . . . . . Special 365 | . . . . . . . 14 19 16 18 5 . 17 32 23 . . 2 39 17 4 2 1 28 4 23 24 33 44 . Kinetic 625 | 15 98 6 92 8 42 179 22 27 16 . . . . 23 . . . 31 . 1 . . . . . 9 . 30 26 . Thermal 559 | 15 . . . . . . . 14 37 . . 25 8 63 59 7 21 8 104 25 15 1 4 101 11 35 6 . . . Explosive 36 | . 1 2 4 . . 3 9 10 3 . . . . 1 2 . . . . . 1 . . . . . . . . . Electromagnetic 17 | . . . . . . . . . 4 . . . 1 3 1 . . 4 . . . . . 4 . . . . . . Robot Hit Streak 29 | 10 12 3 17 9 23 21 17 21 7 7 6 7 5 14 17 7 5 14 29 5 6 4 9 16 7 11 10 17 21 . Robot Miss Streak 8 | 4 4 2 5 2 3 3 4 4 8 2 . 5 3 4 3 . 3 3 3 5 2 . . 3 . 2 2 3 2 . Penetration Max . | . . . . . . . . . . . . . . . . . . . . . . . . . . . . . . . Secondary Targets 8 | . 2 . . . . 6 . . . . . . . . . . . . . . . . . . . . . . . . Max Gunslinging Chain 1 | . 1 . . . . 1 . . . . . . . . . . . . . . . . . . . . . . . . Capacitor 295 | . . . . . . . . . . . . . . . . . . . 104 24 15 1 4 101 11 35 . . . . Shots Hit Robots 1169 | 19 75 3 72 5 31 123 42 43 55 37 5 17 20 83 66 4 14 30 100 24 5 3 5 97 6 59 25 49 52 . Core Hits 443 | 9 45 6 41 4 9 61 24 22 35 1 . 3 1 26 27 2 3 21 27 6 6 1 2 33 2 11 5 5 3 2 Critical Kills 8 | . . . 1 . . . 1 1 1 . . 1 . 1 . . . 1 . . . . . 1 . . . . . . Critical Parts Destroyed 24 | . 1 . . . . 1 2 . 7 6 . . 4 3 . . . . . . . . . . . . . . . . Critical Strikes 50 | . 1 . 1 . . 1 5 1 9 6 . 1 4 6 3 1 . 3 . . . . . 1 . 1 1 3 2 . Burn 2 | . . . . . . . . . . . . . . . 1 1 . . . . . . . . . . . . . . Meltdown 5 | . . . . . . . . . 1 . . 1 . 1 . . . 1 . . . . . 1 . . . . . . Destroy 2 | . . . 1 . . 1 . . . . . . . . . . . . . . . . . . . . . . . . Blast 13 | . . . . . . . 2 . 1 . . . . 2 . . . 2 . . . . . . . 1 . 3 2 . Smash 26 | . 1 . . . . . 3 1 7 6 . . 4 3 1 . . . . . . . . . . . . . . . Impale 2 | . . . . . . . . . . . . . . . 1 . . . . . . . . . . . 1 . . . Melee Attacks 193 | . 3 . 1 . . 22 17 25 28 37 . . 14 8 8 . 2 4 . . . . . . . 17 7 . . . Impact 151 | . 3 . 1 . . 22 8 25 28 37 . . 14 8 5 . . . . . . . . . . . . . . . Slashing . | . . . . . . . . . . . . . . . . . . . . . . . . . . . . . . . Piercing 33 | . . . . . . . . . . . . . . . 3 . 2 4 . . . . . . . 17 7 . . . Sneak Attacks 29 | . 1 . . . . . 5 . 1 4 . . 1 3 2 . 2 2 . . . . . . . 4 4 . . . Combat Hostiles 12 | . . . . . . . 2 . . 4 . . . 2 . . . . . . . . . . . 4 . . . . Follow-up Attacks 4 | . . . . . . . . . . 3 . . 1 . . . . . . . . . . . . . . . . . Damage Inflicted 35411 | 198 992 176 1826 72 517 2464 1637 1258 2834 1394 . 595 511 2540 1602 94 563 1587 3375 535 355 42 170 4008 103 1999 434 1648 1878 4 Guns 6668 | 198 884 58 1092 72 517 2052 . . 151 . . 264 . 116 402 94 167 . . . . . . 487 . . 114 . . . Cannons 17500 | . . . 108 . . . 397 706 590 . . 331 7 1707 776 . 292 1041 3375 482 84 42 170 2405 103 1373 . 1648 1863 . Explosions 6403 | . 55 118 626 . . 412 978 379 1421 . . . . 458 183 . . 386 . . 271 . . 1116 . . . . . . Melee 4762 | . 53 . . . . . 256 173 672 1394 . . 504 259 241 . 104 160 . . . . . . . 626 320 . . . Ramming 78 | . . . . . . . 6 . . . . . . . . . . . . 53 . . . . . . . . 15 4 Kinetic 11012 | 96 884 58 1200 72 517 2052 397 405 214 . . . . 462 . . . 874 . . . . . . . 270 . 1648 1863 . Thermal 14074 | 102 . . . . . . . 301 766 . . 595 . 1361 1178 94 459 167 3375 482 84 42 170 3578 103 1103 114 . . . Explosive 3711 | . 55 118 626 . . 412 978 379 616 . . . . 189 67 . . . . . 271 . . . . . . . . . Electromagnetic 1774 | . . . . . . . . . 566 . . . 7 269 116 . . 386 . . . . . 430 . . . . . . Impact 3419 | . 53 . . . . . 256 173 672 1394 . . 504 259 108 . . . . . . . . . . . . . . . Slashing . | . . . . . . . . . . . . . . . . . . . . . . . . . . . . . . . Piercing 1343 | . . . . . . . . . . . . . . . 133 . 104 160 . . . . . . . 626 320 . . . Highest Corruption 49 | . . 10 . . . . . 4 . 3 . 30 31 49 29 19 21 3 5 7 7 7 . 8 8 9 . 8 26 26 Average Corruption 13 | . . 10 . . . . . 3 . 2 . 17 30 40 21 19 20 2 4 6 7 7 . 4 8 8 . 7 6 26 Corruption Purged 10 | . . . . . . . . . . . . . . . 10 . . . . . . . . . . . . . . . Corruption Blocked . | . . . . . . . . . . . . . . . . . . . . . . . . . . . . . . . Effects 492 | . . 1 . . . . . 6 . 12 . 11 31 117 36 18 5 8 47 18 16 9 . 35 22 47 . 25 24 4 Message Errors 111 | . . . . . . . . . . 3 . 1 7 29 10 6 1 1 6 3 6 4 . 5 8 13 . 3 5 . Matter Fused 120 | . . 1 . . . . . 1 . 4 . 1 3 28 9 6 2 4 17 3 3 2 . 10 4 8 . 7 6 1 Heat Flow Errors 52 | . . . . . . . . 1 . . . 1 5 19 . . . . 7 . 3 2 . 4 1 6 . 3 . . Energy Discharges 57 | . . . . . . . . 1 . 1 . 3 6 8 4 2 2 1 4 4 1 . . 5 1 5 . 5 2 2 Parts Rejected 9 | . . . . . . . . . . 1 . 1 2 2 . . . . 1 . . . . 1 . . . . 1 . Parts Fused 2 | . . . . . . . . . . . . . . 1 . . . . . . . . . . . 1 . . . . Data Loss (minor) 67 | . . . . . . . . 1 . 2 . 1 4 13 6 1 . 2 4 3 2 1 . 5 5 9 . 4 4 . Data Loss (major) 22 | . . . . . . . . . . 1 . . . 3 4 1 . . 3 4 . . . 1 . 1 . 1 2 1 Misfires 19 | . . . . . . . . 1 . . . 2 . 5 1 1 . . 3 1 1 . . 1 2 . . 1 . . Alerts 10 | . . . . . . . . 1 . . . . 1 1 . 1 . . . . . . . 1 1 2 . 1 1 . Misdirections 8 | . . . . . . . . . . . . . 3 1 1 . . . . . . . . . . . . . 3 . Weapon Failures 15 | . . . . . . . . . . . . 1 . 7 1 . . . 2 . . . . 2 . 2 . . . . Overload Shots 1 | . . . . . . . . . . . . . 1 . . . . . . . . . . . . . . . . . Overflow Damage 3226 | . 53 . 4 . . 41 106 . 479 545 . . 286 235 40 . 41 38 148 38 35 . . 121 . 46 50 359 561 . Projectiles 1322 | . . . . . . . . . 2 . . . . 76 3 . 41 2 148 19 32 . . 73 . 6 . 359 561 . Explosions 182 | . . . 4 . . 41 13 . 59 . . . . 14 . . . . . . 3 . . 48 . . . . . . Melee 1722 | . 53 . . . . . 93 . 418 545 . . 286 145 37 . . 36 . 19 . . . . . 40 50 . . . Knockbacks 60 | . 1 . 1 . . . 5 7 5 . . . 4 11 . . . 6 . 1 . . . . . . . 8 11 . Impact 13 | . 1 . . . . . 1 . 3 . . . 4 3 . . . . . 1 . . . . . . . . . . Kinetic 43 | . . . 1 . . . 4 6 2 . . . . 7 . . . 6 . . . . . . . . . 8 9 . Secondary 4 | . . . . . . . . 1 . . . . . 1 . . . . . . . . . . . . . . 2 . Self-Inflicted Damage 478 | . . 24 38 . . . 55 40 27 . . . . 191 . . . 19 . 26 51 . . . . . . . 6 1 Shots 16 | . . 1 1 . . . 2 1 2 . . . . 6 . . . 2 . . 1 . . . . . . . . . Rammed 12 | . . . . . . . 1 . . . . . . . . . . . . 2 . . . . . . . . 6 3 Targets Rammed 12 | . . . . . . . 1 . . . . . . . . . . . . 2 . . . . . . . . 6 3 Kicked . | . . . . . . . . . . . . . . . . . . . . . . . . . . . . . . . Crushed . | . . . . . . . . . . . . . . . . . . . . . . . . . . . . . . . Highest Temperature 504 | 130 18 4 5 . 55 236 254 313 329 . . 295 193 308 447 . . . 396 504 204 181 68 352 126 441 . 228 12 . Average Temperature 95 | 49 5 3 2 . 23 56 112 101 99 . . 107 87 96 184 . . . 102 172 69 76 42 138 63 156 . 133 6 . Received Heat Transfer 4627 | . 156 12 206 . 54 246 505 279 509 39 30 . 117 567 380 . . 133 130 87 33 . . 97 9 31 . 292 706 9 Effects 17 | . . . . . . . 2 . . . . . . 5 1 . . . 1 1 . . . 3 . 4 . . . . Shutdowns 5 | . . . . . . . . . . . . . . . . . . . 1 . . . . 1 . 3 . . . . Energy Bleed 2 | . . . . . . . . . . . . . . 2 . . . . . . . . . . . . . . . . Interference 7 | . . . . . . . 2 . . . . . . 3 . . . . . . . . . 2 . . . . . . Matter Decay 1 | . . . . . . . . . . . . . . . 1 . . . . . . . . . . . . . . . Damage (minor) 1 | . . . . . . . . . . . . . . . . . . . . . . . . . . 1 . . . . Damage (core) 1 | . . . . . . . . . . . . . . . . . . . . 1 . . . . . . . . . . Siege Activations 4 | . . . . . . . . . . . . . . . . . . . . . . . . . . 1 . . 3 . Total Turns 60 | . . . . . . . . . . . . . . . . . . . . . . . . . . 31 . . 29 . Longest Duration 31 | . . . . . . . . . . . . . . . . . . . . . . . . . . 31 . . 16 . Robots Corrupted 2 | . . . . . . . . . . . . . . . . . . 1 . . . . . 1 . . . . . . Combat Hostiles 2 | . . . . . . . . . . . . . . . . . . 1 . . . . . 1 . . . . . . Parts Fried 21 | . 1 . . . . . 1 . 8 2 . . 4 3 . . . 1 . . . . . 1 . . . . . . Impact Corruptions 61 | . 3 . . . . . 2 . 15 23 . . 12 3 . . . . . 1 . . . . . . . . 2 . Robots Melted 8 | . . . . . . . . . 1 . . 1 . 1 . . 1 1 . . . . . 3 . . . . . . Combat Hostiles 6 | . . . . . . . . . 1 . . 1 . . . . 1 1 . . . . . 2 . . . . . . Parts Melted 29 | . . . 3 . . . 1 . 2 . . 2 . 2 3 2 . 1 1 . . . . 11 1 . . . . . Heat Transferred 13838 | 296 . . . . . . . 400 1182 . . 1007 . 1189 1647 222 609 250 2718 407 74 37 148 2866 74 564 148 . . . Parts Sabotaged 7 | . . . . . . 5 . . . . . . . . . . . . . 2 . . . . . . . . . . Parts Stolen . | . . . . . . . . . . . . . . . . . . . . . . . . . . . . . . . Parts Stripped . | . . . . . . . . . . . . . . . . . . . . . . . . . . . . . . . Power Chain Reactions 5 | . . . . . . . . . 1 . . . . 2 . . . . . . . . . 2 . . . . . . Alert | -11 -10 -10 -9 -9 -8 -8 -8 -8 -7 -7 -6 -6 -6 -6 -5 -5 -5 -4 -4 -4 -4 -4 -3 -3 -3 -3 -2 -2 -1 -1 ------- Run | Yrd Mat Min Mat Min Mat Gar Mat Gar Fac Gar Fac Was Fac Gar Fac Upp Upp Fac Gar Fac Upp Upp Res Gar Res Gar Res Gar Acc Gar Peak Influence 1240 | 30 272 136 521 187 131 1217 816 876 550 927 486 36 246 1240 782 . . 290 1114 762 . . 186 948 626 1085 641 569 1108 677 Initial 651 | . 19 40 1 187 5 14 592 305 449 270 486 34 . 172 651 . . 12 106 584 . . 147 139 533 234 609 87 340 622 Average 434 | 18 163 37 315 129 31 763 643 550 263 572 225 8 34 667 495 . . 121 653 617 . . 183 583 476 531 211 282 646 653 Maximum Alert Level 4 | . 1 . 2 . . 4 3 3 2 3 2 . 1 4 3 . . 1 4 3 . . . 3 2 3 2 2 4 2 Low Security (%) 32 | 100 78 100 27 100 100 12 . . 48 . 50 100 99 10 . . . 90 12 . . . 100 7 . . 78 43 . . Level 1 16 | . 21 . 35 . . 5 . 19 19 36 26 . . 10 26 . . 9 15 . . . . 13 29 42 4 30 18 . Level 2 29 | . . . 36 . . 12 60 62 31 40 22 . . 31 57 . . . 20 88 . . . 45 70 37 17 26 31 100 Level 3 20 | . . . . . . 65 39 18 . 23 . . . 45 16 . . . 46 11 . . . 33 . 19 . . 48 . Level 4 . | . . . . . . 4 . . . . . . . 2 . . . . 4 . . . . . . . . . . . Level 5 . | . . . . . . . . . . . . . . . . . . . . . . . . . . . . . . . High Security . | . . . . . . . . . . . . . . . . . . . . . . . . . . . . . . . Max Security . | . . . . . . . . . . . . . . . . . . . . . . . . . . . . . . . Squads Dispatched 44 | . 3 1 3 . 2 . 4 . 3 . 1 . 1 . 5 . . 2 . 3 . . . . 1 . 2 . 13 . Investigation 5 | . 2 . 2 . . . 1 . . . . . . . . . . . . . . . . . . . . . . . Extermination 11 | . . . . . . . . . 1 . 1 . 1 . 2 . . 1 . 1 . . . . 1 . 1 . 2 . Reinforcement 16 | . 1 . 1 . 1 . 3 . . . . . . . 1 . . 1 . 1 . . . . . . 1 . 6 . Assault 8 | . . 1 . . . . . . 1 . . . . . 2 . . . . 1 . . . . . . . . 3 . Garrison 4 | . . . . . 1 . . . 1 . . . . . . . . . . . . . . . . . . . 2 . Intercept . | . . . . . . . . . . . . . . . . . . . . . . . . . . . . . . . Searches Triggered . | . . . . . . . . . . . . . . . . . . . . . . . . . . . . . . . Construction Impeded 4 | . . . . . . . 1 . . . . . . . 1 . . 1 . 1 . . . . . . . . . . Haulers Reinforced 2 | . . . . . . . . . . . . . . . . . . . . . . . . . . . . . 2 . Active Scanning Responses . | . . . . . . . . . . . . . . . . . . . . . . . . . . . . . . . Cargo Convoy Interrupts 1 | . . . . . . . . . . . . . . . 1 . . . . . . . . . . . . . . . Stealth | -11 -10 -10 -9 -9 -8 -8 -8 -8 -7 -7 -6 -6 -6 -6 -5 -5 -5 -4 -4 -4 -4 -4 -3 -3 -3 -3 -2 -2 -1 -1 --------- Run | Yrd Mat Min Mat Min Mat Gar Mat Gar Fac Gar Fac Was Fac Gar Fac Upp Upp Fac Gar Fac Upp Upp Res Gar Res Gar Res Gar Acc Gar Distress Signals 17 | . 2 . 2 . . . 7 . . . . . 2 . . . . . . . . . . . . . . . 4 . Communications Jammed 64 | . . . . . . . . . . . . . . . . . . . . . . . . . . . . . 64 . Distress Signals 64 | . . . . . . . . . . . . . . . . . . . . . . . . . . . . . 64 . Times Spotted 658 | . 27 5 34 . 13 46 39 29 49 24 5 6 17 42 27 1 2 13 42 24 5 1 . 34 7 29 9 33 82 13 Peak Tracking Total 17 | . 4 3 5 . 6 8 7 6 7 7 3 3 5 8 9 1 2 6 6 9 4 1 . 7 2 6 3 11 17 14 Tactical Retreats 47 | . 1 1 2 . . 3 1 1 8 . . . 2 3 1 . . 2 3 2 . . . 3 . . 1 1 11 1 Traps | -11 -10 -10 -9 -9 -8 -8 -8 -8 -7 -7 -6 -6 -6 -6 -5 -5 -5 -4 -4 -4 -4 -4 -3 -3 -3 -3 -2 -2 -1 -1 ------- Run | Yrd Mat Min Mat Min Mat Gar Mat Gar Fac Gar Fac Was Fac Gar Fac Upp Upp Fac Gar Fac Upp Upp Res Gar Res Gar Res Gar Acc Gar Traps Triggered 62 | . 1 . 1 1 3 10 1 5 4 4 3 . . 3 . . . . 12 2 . . . 6 . . . 6 . . Indirectly . | . . . . . . . . . . . . . . . . . . . . . . . . . . . . . . . Trap Hack Attempts . | . . . . . . . . . . . . . . . . . . . . . . . . . . . . . . . Triggered . | . . . . . . . . . . . . . . . . . . . . . . . . . . . . . . . Disarmed . | . . . . . . . . . . . . . . . . . . . . . . . . . . . . . . . Reprogrammed . | . . . . . . . . . . . . . . . . . . . . . . . . . . . . . . . Reused . | . . . . . . . . . . . . . . . . . . . . . . . . . . . . . . . Traps Extracted . | . . . . . . . . . . . . . . . . . . . . . . . . . . . . . . . Installed . | . . . . . . . . . . . . . . . . . . . . . . . . . . . . . . . Triggered 5 | . . . . . . . . . . . . . . . 1 . . . . . . . . 4 . . . . . . Most Traps Carried 1 | . . 1 1 . . . . . . . . . . . . . . . . . . . . . . . . . . . Machines | -11 -10 -10 -9 -9 -8 -8 -8 -8 -7 -7 -6 -6 -6 -6 -5 -5 -5 -4 -4 -4 -4 -4 -3 -3 -3 -3 -2 -2 -1 -1 ---------- Run | Yrd Mat Min Mat Min Mat Gar Mat Gar Fac Gar Fac Was Fac Gar Fac Upp Upp Fac Gar Fac Upp Upp Res Gar Res Gar Res Gar Acc Gar Machines Disabled 57 | . 2 . 1 . . 1 2 2 10 4 . . . 7 1 . . 1 7 . . . . 3 . 8 1 3 4 . Max in Single Turn 3 | . 2 . 1 . . . 1 1 3 1 . . . 1 . . . 1 1 . . . . 1 . 1 . 1 1 . Garrison Access 3 | . . . . . . . . . 2 . . . . . . . . . . . . . . . . . . . 1 . Garrison Relay 36 | . . . . . . 8 . 3 . 3 . . . 5 . . . . 5 . . . . 3 . 7 . 2 . . Phase Generator 1 | . . . . . . 1 . . . . . . . . . . . . . . . . . . . . . . . . Machines Repaired . | . . . . . . . . . . . . . . . . . . . . . . . . . . . . . . . Machines Dismantled 11 | . . . . . . 9 . 2 . . . . . . . . . . . . . . . . . . . . . . Machines Sabotaged . | . . . . . . . . . . . . . . . . . . . . . . . . . . . . . . . Overloaded Fab Kills . | . . . . . . . . . . . . . . . . . . . . . . . . . . . . . . . Hacking | -11 -10 -10 -9 -9 -8 -8 -8 -8 -7 -7 -6 -6 -6 -6 -5 -5 -5 -4 -4 -4 -4 -4 -3 -3 -3 -3 -2 -2 -1 -1 --------- Run | Yrd Mat Min Mat Min Mat Gar Mat Gar Fac Gar Fac Was Fac Gar Fac Upp Upp Fac Gar Fac Upp Upp Res Gar Res Gar Res Gar Acc Gar Machines Accessed 79 | . 8 1 6 1 3 3 6 2 6 3 7 . 4 2 4 . . 4 2 2 1 . 1 1 4 1 3 2 1 1 Terminals 53 | . 6 . 5 . 2 3 5 2 3 3 5 . 1 2 1 . . 2 2 2 . . . 1 3 1 1 2 . 1 Fabricators 5 | . . . . . . . . . . . . . 1 . 2 . . 1 . . . . . . . . 1 . . . Repair Stations 6 | . 1 . . . . . . . 1 . 2 . 1 . 1 . . . . . . . . . . . . . . . Recycling Units 2 | . 1 . 1 . . . . . . . . . . . . . . . . . . . . . . . . . . . Scanalyzers . | . . . . . . . . . . . . . . . . . . . . . . . . . . . . . . . Garrison Access 10 | . . . . . 1 . 1 . 2 . . . 1 . . . . 1 . . . . 1 . 1 . 1 . 1 . Total Hacks 170 | . 20 1 13 1 9 7 14 2 15 6 18 . 7 4 12 . . 6 3 6 1 . 1 2 5 3 6 4 1 3 Successful 64 | . 9 1 5 1 3 1 7 2 7 1 7 . 1 . 2 . . 3 1 2 1 . 1 1 2 . 3 2 1 . Failed 106 | . 11 . 8 . 6 6 7 . 8 5 11 . 6 4 10 . . 3 2 4 . . . 1 3 3 3 2 . 3 Catastrophic 19 | . 2 . 1 . . 1 3 . . . 3 . 1 1 2 . . . 1 . . . . . 2 . . 1 . 1 Database Lockouts . | . . . . . . . . . . . . . . . . . . . . . . . . . . . . . . . Manual 62 | . 10 . 13 . 5 . 8 . 6 . 6 . . . 6 . . 1 . 3 . . . . . . 4 . . . Terminals 134 | . 17 . 12 . 6 7 13 2 11 6 15 . 2 4 6 . . 4 3 6 . . . 2 4 3 4 4 . 3 Fabricators 5 | . . . . . . . . . . . . . 1 . 2 . . 1 . . . . . . . . 1 . . . Repair Stations 14 | . 2 . . . . . . . 2 . 3 . 3 . 4 . . . . . . . . . . . . . . . Recycling Units 2 | . 1 . 1 . . . . . . . . . . . . . . . . . . . . . . . . . . . Scanalyzers . | . . . . . . . . . . . . . . . . . . . . . . . . . . . . . . . Garrison Access 12 | . . . . . 3 . 1 . 2 . . . 1 . . . . 1 . . . . 1 . 1 . 1 . 1 . Terminal Hacks 35 | . 6 1 2 1 1 1 4 2 4 1 4 . . . . . . 1 1 1 1 . . 1 1 . . 2 . . Record 1 | . . . . . . . . . . . . . . . . . . . . 1 . . . . . . . . . . Robot Analysis 4 | . 3 . 1 . . . . . . . . . . . . . . . . . . . . . . . . . . . Prototype ID Bank 4 | . 1 . . . . . 1 . 1 . . . . . . . . . . . . . . . 1 . . . . . Open Door 5 | . . 1 . 1 . 1 . . . . . . . . . . . . . . 1 . . . . . . 1 . . Branch Access Points 3 | . 1 . 1 . 1 . . . . . . . . . . . . . . . . . . . . . . . . . Emergency Access Points 6 | . . . . . . . . 1 1 1 . . . . . . . . 1 . . . . 1 . . . 1 . . Alert Level 1 | . 1 . . . . . . . . . . . . . . . . . . . . . . . . . . . . . Unreport Threat 7 | . . . . . . . 3 . 2 . 2 . . . . . . . . . . . . . . . . . . . Hauler Manifests 1 | . . . . . . . . . . . 1 . . . . . . . . . . . . . . . . . . . Registered Components 2 | . . . . . . . . . . . 1 . . . . . . 1 . . . . . . . . . . . . Patrol Navigation 1 | . . . . . . . . 1 . . . . . . . . . . . . . . . . . . . . . . Fabricator Hacks 2 | . . . . . . . . . . . . . . . . . . 1 . . . . . . . . 1 . . . Network Status 1 | . . . . . . . . . . . . . . . . . . 1 . . . . . . . . . . . . Build 1 | . . . . . . . . . . . . . . . . . . . . . . . . . . . 1 . . . Repair Station Hacks 5 | . 2 . . . . . . . . . 1 . . . 2 . . . . . . . . . . . . . . . Scan Component 3 | . 1 . . . . . . . . . 1 . . . 1 . . . . . . . . . . . . . . . Repair 2 | . 1 . . . . . . . . . . . . . 1 . . . . . . . . . . . . . . . Recycling Unit Hacks . | . . . . . . . . . . . . . . . . . . . . . . . . . . . . . . . Scanalyzer . | . . . . . . . . . . . . . . . . . . . . . . . . . . . . . . . Garrison Access Hacks 10 | . . . . . 1 . 1 . 2 . . . 1 . . . . 1 . . . . 1 . 1 . 1 . 1 . Unlock Access 9 | . . . . . 1 . 1 . 1 . . . 1 . . . . 1 . . . . 1 . 1 . 1 . 1 . Seal Access 1 | . . . . . . . . . 1 . . . . . . . . . . . . . . . . . . . . . Unauthorized Hacks 12 | . 1 . 3 . 1 . 2 . 1 . 2 . . . . . . . . 1 . . . . . . 1 . . . Terminals 10 | . . . 2 . 1 . 2 . 1 . 2 . . . . . . . . 1 . . . . . . 1 . . . Botnet 10 | . . . 2 . 1 . 2 . 1 . 2 . . . . . . . . 1 . . . . . . 1 . . . Fabricators . | . . . . . . . . . . . . . . . . . . . . . . . . . . . . . . . Repair Stations . | . . . . . . . . . . . . . . . . . . . . . . . . . . . . . . . Recycling Units 2 | . 1 . 1 . . . . . . . . . . . . . . . . . . . . . . . . . . . Tunnel 2 | . 1 . 1 . . . . . . . . . . . . . . . . . . . . . . . . . . . Scanalyzers . | . . . . . . . . . . . . . . . . . . . . . . . . . . . . . . . Garrison Access . | . . . . . . . . . . . . . . . . . . . . . . . . . . . . . . . Data Cores Recovered 2 | . . . 1 . . . . . . . . . . . . . . . . . . . . . 1 . . . . . Used . | . . . . . . . . . . . . . . . . . . . . . . . . . . . . . . . Hacking Detections 62 | . 6 . 4 . 2 3 5 1 5 3 6 . 3 2 3 . . 3 2 2 . . 1 1 4 1 2 1 1 1 Full Trace Events 5 | . 1 . . . . 1 . . . . . . . . . . . . . . . . . 1 . . . 1 . 1 Feedback Events . | . . . . . . . . . . . . . . . . . . . . . . . . . . . . . . . Feedback Blocked . | . . . . . . . . . . . . . . . . . . . . . . . . . . . . . . . Robot Schematics Acquired . | . . . . . . . . . . . . . . . . . . . . . . . . . . . . . . . Robots Built . | . . . . . . . . . . . . . . . . . . . . . . . . . . . . . . . Authchips . | . . . . . . . . . . . . . . . . . . . . . . . . . . . . . . . Time . | . . . . . . . . . . . . . . . . . . . . . . . . . . . . . . . Total Robot Build Rating . | . . . . . . . . . . . . . . . . . . . . . . . . . . . . . . . Part Schematics Acquired . | . . . . . . . . . . . . . . . . . . . . . . . . . . . . . . . Parts Built 2 | . . . . . . . . . . . . . . . . . . . . . . . . . . . 2 . . . Authchips . | . . . . . . . . . . . . . . . . . . . . . . . . . . . . . . . Time 139 | . . . . . . . . . . . . . . . . . . . . . . . . . . . 139 . . . Total Part Build Rating 18 | . . . . . . . . . . . . . . . . . . . . . . . . . . . 18 . . . Parts Repaired 2 | . 1 . . . . . . . . . . . . . 1 . . . . . . . . . . . . . . . Time 54 | . 26 . . . . . . . . . . . . . 28 . . . . . . . . . . . . . . . Parts Recycled . | . . . . . . . . . . . . . . . . . . . . . . . . . . . . . . . Recycled Matter . | . . . . . . . . . . . . . . . . . . . . . . . . . . . . . . . Retrieved Matter . | . . . . . . . . . . . . . . . . . . . . . . . . . . . . . . . Retrieved Components . | . . . . . . . . . . . . . . . . . . . . . . . . . . . . . . . Parts Scanalyzed . | . . . . . . . . . . . . . . . . . . . . . . . . . . . . . . . Part Schematics Acquired . | . . . . . . . . . . . . . . . . . . . . . . . . . . . . . . . Parts Damaged . | . . . . . . . . . . . . . . . . . . . . . . . . . . . . . . . Bothacking | -11 -10 -10 -9 -9 -8 -8 -8 -8 -7 -7 -6 -6 -6 -6 -5 -5 -5 -4 -4 -4 -4 -4 -3 -3 -3 -3 -2 -2 -1 -1 ------------ Run | Yrd Mat Min Mat Min Mat Gar Mat Gar Fac Gar Fac Was Fac Gar Fac Upp Upp Fac Gar Fac Upp Upp Res Gar Res Gar Res Gar Acc Gar Used RIF Installer 11 | . . . . . . 1 . 1 . 1 . . . 1 . . . . 1 . . . . 2 . 1 . 2 . 1 Coupler Efficiency 1 | . . . . . . . . . . . . . . . . . . . . . . . . 1 . . . . . . Hotswap 1 | . . . . . . . . . . 1 . . . . . . . . . . . . . . . . . . . . Code Merge 1 | . . . . . . . . . . . . . . 1 . . . . . . . . . . . . . . . . Command Fork 1 | . . . . . . . . . . . . . . . . . . . 1 . . . . . . . . . . . Signal Jammer 1 | . . . . . . . . . . . . . . . . . . . . . . . . 1 . . . . . . Zone Cloak 1 | . . . . . . . . . . . . . . . . . . . . . . . . . . . . 1 . . Structural Interface 1 | . . . . . . . . 1 . . . . . . . . . . . . . . . . . . . . . . Program Shield 1 | . . . . . . . . . . . . . . . . . . . . . . . . . . . . 1 . . Autoassimilate 1 | . . . . . . . . . . . . . . . . . . . . . . . . . . 1 . . . . Crosswire 1 | . . . . . . . . . . . . . . . . . . . . . . . . . . . . . . 1 Robots Hacked 176 | . . . . . . . 12 10 7 9 3 . 10 10 10 . . 1 16 8 2 1 1 15 2 13 9 14 23 . Non-combat 16 | . . . . . . . 1 . 1 . . . 6 . 2 . . . . . . . . . 1 . 2 . 3 . Combat 160 | . . . . . . . 11 10 6 9 3 . 4 10 8 . . 1 16 8 2 1 1 15 1 13 7 14 20 . Autoassimilated 9 | . . . . . . . . . . . . . . . . . . . . . . . . . . . 2 1 6 . Robot Hacks Applied 187 | . . . . . . . 14 11 10 9 3 . 10 11 12 . . 1 16 8 2 1 1 15 3 15 12 13 20 . parse_system 17 | . . . . . . . 3 . 1 . . . . 1 2 . . . 1 . 1 . . 2 1 3 . . 2 . no_distress 1 | . . . . . . . . . . . . . 1 . . . . . . . . . . . . . . . . . drop_inventory 4 | . . . . . . . . . . . . . 2 . . . . . . . . . . . . . 1 . 1 . purge_threat 8 | . . . . . . . . . . . . . . . . . . . . . . . . . 1 . 5 . 2 . map_route 6 | . . . . . . . . . 2 . . . 2 . 1 . . . . . . . . . . . . . 1 . find_garrison 2 | . . . . . . . 1 . 1 . . . . . . . . . . . . . . . . . . . . . overload_power 3 | . . . . . . . . 1 . . . . . . . . . . . 1 . . . 1 . . . . . . amplify_resonance 6 | . . . . . . . . . . . . . . 1 . . . . . . . . . 2 . 1 . 1 1 . reboot_system 8 | . . . . . . . . 2 . 1 . . . . . . . . . . . . 1 3 . 1 . . . . go_dormant 1 | . . . . . . . 1 . . . . . . . . . . . . . . . . . . . . . . . overwrite_iff 46 | . . . . . . . 5 3 1 5 1 . 2 4 3 . . . 7 3 . . . 1 . 4 1 2 4 . formatsys_low 4 | . . . . . . . . . . . . . 1 . 1 . . . . . . . . . . . 1 . 1 . formatsys_high 81 | . . . . . . . 4 5 5 3 2 . 2 5 5 . . 1 8 4 1 1 . 6 1 6 4 10 8 . Relay Couplers Released 146 | . . . . . . 31 . 13 4 11 . . . 21 . . . . 19 . . . . 10 . 25 . 10 2 . Machine Destruction 146 | . . . . . . 31 . 13 4 11 . . . 21 . . . . 19 . . . . 10 . 25 . 10 2 . Attached 58 | . . . . . . 1 3 6 5 5 2 . . 9 3 . . 1 7 1 . . . 4 1 4 . 3 3 . Crosswired 4 | . . . . . . . . . . . . . . . . . . . . . . . . . . . . . . 4 Merged Code Value 316 | . . . . . . . . . . . . . . 61 . . . . 67 . . . . . . 128 . 60 . . Fabnet Peak Effective % . | . . . . . . . . . . . . . . . . . . . . . . . . . . . . . . . Robots Rewired 15 | . . . . . . 2 . . . . . . . 6 . . . . 2 . . . . 1 . . . 4 . . Allies Hacked 7 | . . . . . . . . 1 . . . . . . 1 . . . 2 . . . . 1 . . . 2 . . Hacks Repelled . | . . . . . . . . . . . . . . . . . . . . . . . . . . . . . . . Allies | -11 -10 -10 -9 -9 -8 -8 -8 -8 -7 -7 -6 -6 -6 -6 -5 -5 -5 -4 -4 -4 -4 -4 -3 -3 -3 -3 -2 -2 -1 -1 -------- Run | Yrd Mat Min Mat Min Mat Gar Mat Gar Fac Gar Fac Was Fac Gar Fac Upp Upp Fac Gar Fac Upp Upp Res Gar Res Gar Res Gar Acc Gar Total Allies 176 | . . 2 1 . 2 5 9 8 6 10 3 . 5 15 9 . . 1 19 7 1 1 . 8 4 11 8 18 23 . Largest Group 8 | . . 2 1 . 1 2 3 2 2 5 4 4 3 8 2 . . 1 5 4 2 3 3 3 5 5 6 8 7 . Highest-Rated Group 589 | . . 62 31 . 16 51 59 30 64 196 153 110 70 233 82 . . 49 411 337 105 148 148 167 251 295 226 589 441 . Highest-Rated Ally 178 | . . 31 31 . 16 31 29 15 32 80 75 32 29 84 47 . . 49 116 116 56 56 56 119 64 64 64 148 178 . Total Orders 17 | . . . . . . . . . 1 . . . 1 . . . . . 5 . . . . . . . . 9 1 . STAY 4 | . . . . . . . . . 1 . . . . . . . . . 2 . . . . . . . . . 1 . ROAM 6 | . . . . . . . . . . . . . . . . . . . 1 . . . . . . . . 5 . . FOLLOW 7 | . . . . . . . . . . . . . 1 . . . . . 2 . . . . . . . . 4 . . Ally Attacks 995 | . . 1 28 . 22 25 67 25 24 56 11 29 28 77 50 . . 7 69 47 3 3 11 31 9 85 36 85 166 . Total Damage 31087 | . . 22 372 . 107 175 1076 599 691 1463 341 1391 359 1949 1783 . . 190 2540 2080 145 43 393 1299 205 2687 1229 2940 7008 . Kills 203 | . . . 6 . 3 3 10 4 6 16 3 4 8 15 9 . . 1 17 11 3 . . 8 1 14 6 13 42 . Allies Corrupted 7 | . . . . . . . . . . . . . . 1 . . . . 1 1 . . . . . . . 1 3 . Allies Melted 5 | . . . . . . . 1 . . . . . . 2 . . . . . . . . . 1 . . 1 . . . Intel | -11 -10 -10 -9 -9 -8 -8 -8 -8 -7 -7 -6 -6 -6 -6 -5 -5 -5 -4 -4 -4 -4 -4 -3 -3 -3 -3 -2 -2 -1 -1 ------- Run | Yrd Mat Min Mat Min Mat Gar Mat Gar Fac Gar Fac Was Fac Gar Fac Upp Upp Fac Gar Fac Upp Upp Res Gar Res Gar Res Gar Acc Gar Robot Analysis Total 4 | . 3 . 1 . . . . . . . . . . . . . . . . . . . . . . . . . . . Derelict Logs Recovered 7 | . . 1 . 2 . . . . . . . . . . . 1 . . . . 2 1 . . . . . . . . Drone Launches 39 | . . . 7 . 18 14 . . . . . . . . . . . . . . . . . . . . . . . . Drone Recoveries 36 | . . . 7 . 16 13 . . . . . . . . . . . . . . . . . . . . . . . . Exploration | -11 -10 -10 -9 -9 -8 -8 -8 -8 -7 -7 -6 -6 -6 -6 -5 -5 -5 -4 -4 -4 -4 -4 -3 -3 -3 -3 -2 -2 -1 -1 ------------- Run | Yrd Mat Min Mat Min Mat Gar Mat Gar Fac Gar Fac Was Fac Gar Fac Upp Upp Fac Gar Fac Upp Upp Res Gar Res Gar Res Gar Acc Gar Turns Passed 26427 | 138 1607 1170 886 593 475 1824 793 1346 1486 802 547 258 551 2148 1235 434 105 726 1771 641 497 242 174 1254 641 1271 605 1008 1129 70 Spaces Moved 12957 | 67 609 462 480 467 291 998 453 586 667 482 394 136 277 903 576 265 43 324 841 337 268 135 86 471 317 558 244 508 578 134 Core 181 | . . . . . . . . . . . . . . 3 20 . . . . . . . . . . . . . 24 134 Treads 1204 | . 396 326 . . . . . . 150 . . . . . . . . . . . . . . 3 . 132 . . 197 . Legs 350 | 67 213 . . . . . . . . . . . . 70 . . . . . . . . . . . . . . . . Wheels 11119 | . . 136 480 467 291 998 453 586 517 482 394 136 277 830 553 265 43 324 841 337 268 135 86 468 317 426 244 508 257 . Hover 103 | . . . . . . . . . . . . . . . 3 . . . . . . . . . . . . . 100 . Flight . | . . . . . . . . . . . . . . . . . . . . . . . . . . . . . . . Fastest Speed 50 | 120 120 110 110 115 130 115 120 130 125 115 130 145 145 145 50 155 150 150 150 165 160 175 175 180 180 155 165 100 50 50 Average Speed 161 | 120 217 201 121 118 130 127 132 172 172 126 131 152 158 190 156 159 150 171 163 165 169 175 188 196 180 188 210 139 159 50 Slowest Speed 1750 | 120 260 240 170 130 130 180 165 200 320 130 160 160 160 1700 1750 170 150 290 165 255 175 175 190 320 180 250 235 235 340 50 Overloaded Moves . | . . . . . . . . . . . . . . . . . . . . . . . . . . . . . . . Propulsion Burnouts . | . . . . . . . . . . . . . . . . . . . . . . . . . . . . . . . Robots Hopped . | . . . . . . . . . . . . . . . . . . . . . . . . . . . . . . . Cave-ins Triggered . | . . . . . . . . . . . . . . . . . . . . . . . . . . . . . . . Exploration Rate (%) 43 | 3 91 64 57 83 31 92 56 66 25 72 13 83 12 93 13 50 9 8 95 7 49 17 4 65 11 66 7 71 25 22 Regions Visited 30 Branch Regions 6 Pre-discovered Areas 4 | . 1 . 1 1 . . . . . . . . . . . . . . . . 1 . . . . . . . . . Known Exits Taken 11 | . 1 . 1 . 1 . 1 . 1 . . . 1 . . . . 1 . . . . 1 . 1 . 1 . 1 . Unknown Exits Taken 9 | 1 . 1 . 1 . . . . . . . . . . 1 1 1 . . 1 1 1 . . . . . . . . Scrap Searched 6 | . . 2 . 1 . . . . . . . . . . . 2 . . . . 1 . . . . . . . . . Spaces Dug 109 | . 8 6 1 . . 17 1 6 19 . . . 2 4 15 . . 3 3 3 9 . . . 7 . 2 . 3 . Terrain Destroyed 450 | . 8 11 32 . . 24 94 57 36 . . 4 3 16 24 . 2 14 15 14 31 . . 27 9 15 2 6 6 . Melee 26 | . 1 . 1 . . 6 1 6 8 . . . . . . . . 1 . . . . . . . . 2 . . . Projectile 128 | . . . . . . . 5 2 10 . . 4 3 6 . . 2 13 15 14 13 . . 5 9 15 . 6 6 . AOE 296 | . 7 11 31 . . 18 88 49 18 . . . . 10 24 . . . . . 18 . . 22 . . . . . . Terrain Rammed . | . . . . . . . . . . . . . . . . . . . . . . . . . . . . . . . Walls Destroyed . | . . . . . . . . . . . . . . . . . . . . . . . . . . . . . . . Machines Disabled . | . . . . . . . . . . . . . . . . . . . . . . . . . . . . . . . Actions | -11 -10 -10 -9 -9 -8 -8 -8 -8 -7 -7 -6 -6 -6 -6 -5 -5 -5 -4 -4 -4 -4 -4 -3 -3 -3 -3 -2 -2 -1 -1 --------- Run | Yrd Mat Min Mat Min Mat Gar Mat Gar Fac Gar Fac Was Fac Gar Fac Upp Upp Fac Gar Fac Upp Upp Res Gar Res Gar Res Gar Acc Gar Total 17137 | 96 798 690 694 501 359 1320 585 806 875 610 420 159 348 1212 815 271 62 445 1237 412 308 140 97 789 387 734 321 765 744 137 Wait 1159 | 11 82 213 103 9 27 36 37 39 50 14 . . 18 88 85 3 . 39 66 8 8 1 . 24 44 38 13 64 39 . Move 12921 | 66 608 461 479 466 290 996 453 584 666 480 394 135 276 901 575 264 42 323 839 336 267 134 85 469 316 556 243 506 577 134 Hop . | . . . . . . . . . . . . . . . . . . . . . . . . . . . . . . . Pick Up 283 | 2 22 1 15 5 6 25 5 18 11 18 3 2 3 26 22 . . 7 22 8 3 1 1 14 3 17 5 5 13 . Fast Attach 182 | 1 2 3 4 3 9 5 2 3 11 5 3 2 7 16 27 1 1 8 9 6 3 . 1 12 3 8 5 12 10 . Attach 129 | . . . 5 1 2 6 3 10 12 2 2 . 2 13 8 . 4 5 6 5 1 . 2 12 . 8 1 5 14 . Detach 52 | . 1 . 1 1 2 . . 1 7 2 . 1 2 4 1 . . 2 2 . . . 1 7 . 4 2 2 9 . Swap 235 | 1 13 3 17 2 1 28 22 16 18 6 2 3 4 16 9 1 . 9 20 1 4 1 2 13 2 7 5 7 2 . Drop 263 | . 17 4 19 9 8 22 10 8 10 16 3 . 3 19 7 . . 9 30 5 3 . . 15 6 10 10 17 3 . Fire 1227 | 15 50 5 50 4 14 65 36 55 61 18 5 16 22 96 73 2 13 39 142 41 19 3 5 134 13 69 30 62 70 . Melee 185 | . 3 . 1 . . 22 17 25 28 32 . . 11 8 8 . 2 4 . . . . . . . 17 7 . . . Ram 11 | . . . . . . . . . . . . . . . . . . . . 2 . . . . . . . . 6 3 Kick . | . . . . . . . . . . . . . . . . . . . . . . . . . . . . . . . Crush 1 | . . . . . . . . . . . . . . . . . . . . . . . . . . . . . 1 . Escape Stasis 309 | . . . . . . 64 . 40 . 17 8 . . 24 . . . . 84 . . . . 32 . . . 40 . . Rewire 133 | . . . . 1 . 11 . . 1 . . . . 1 . . . . 17 . . . . 57 . . . 45 . . Trap . | . . . . . . . . . . . . . . . . . . . . . . . . . . . . . . . Miscellaneous 47 | . . . . . . 40 . 7 . . . . . . . . . . . . . . . . . . . . . . Route ------- -11/Scrapyard -10/Materials (discovered 3 exits: *Mat x2 / *Min) -10/Mines (discovered 2 exits: *Mat x2) -9/Materials -9/Mines (discovered 3 exits: *Mat x2 / [*Zio]) -8/Materials (discovered 4 exits: Fac / *Sto x2 / Gar) -8/Garrison (discovered 3 exits: *Mat x3) -8/Materials (discovered 3 exits: *Fac x2 / Gar) -8/Garrison (discovered 2 exits: *Fac x2) -7/Factory -7/Garrison (discovered 2 exits: *Fac x2) -6/Factory -6/Waste -6/Factory -6/Garrison (discovered 2 exits: *Fac x2) -5/Factory (discovered 2 exits: Fac / [*Upp]) -5/Upper Caves -5/Upper Caves -4/Factory -4/Garrison (discovered 3 exits: *Fac x3) -4/Factory -4/Upper Caves -4/Upper Caves (discovered 2 exits: *Res / War) -3/Research -3/Garrison (discovered 2 exits: *Res x2) -3/Research (discovered 2 exits: [*Arm] / Gar) -3/Garrison (discovered 3 exits: *Res x2 / [*Res]) -2/Research (discovered 2 exits: *Acc / Gar) -2/Garrison (discovered 2 exits: *Acc x2) -1/Access -1/Garrison History --------- Turn | Location | Event 1 | -11/Scrapyard | Discovered new exit (range 3) 139 | -11/Scrapyard | Entered Materials 312 | -10/Materials | Build established: Mutant 547 | -10/Materials | Discovered new exit (range 6) 937 | -10/Materials | Identified exit to Mines 1188 | -10/Materials | Repaired Lgt. Treads 1278 | -10/Materials | Discovered new exit (range 16) 1746 | -10/Materials | Entered Mines 1918 | -10/Mines | Assembled infested the area 1923 | -10/Mines | Assisted by a Guerilla fighting off Assembled 2390 | -10/Mines | Discovered new exit (range 13) 2440 | -10/Mines | Discovered new exit (range 7) 2544 | -10/Mines | Found the Drone Emporium 2561 | -10/Mines | Found Prototype Device 2561 | -10/Mines | Identified Splice Drone Bay 2615 | -10/Mines | Found a hidden stash of uninstalled traps 2778 | -10/Mines | Received a Mining Laser from a helpful Derelict 2884 | -10/Mines | Met a Derelict testing a Signal Generator 2915 | -10/Mines | System corruption reached 10% 2916 | -10/Mines | Entered Materials 2916 | -9/Materials | Accompanied by 1 ally 2916 | -9/Materials | Evolved 2 slots: Utility x2 2917 | -9/Materials | Identified exit to Mines 3802 | -9/Materials | Entered Mines 3836 | -9/Mines | Found a damaged Exp. Sensor Array with a note attached 3839 | -9/Mines | Found Prototype Device 3841 | -9/Mines | Met a Derelict bent on vengeance 3917 | -9/Mines | Discovered new exit (range 11) 4189 | -9/Mines | Met a Derelict who couldn't figure out how to use a Trap Extractor 4286 | -9/Mines | A Derelict revealed a hidden shortcut to a safe place 4314 | -9/Mines | Discovered new exit (range 12) 4395 | -9/Mines | Entered Materials 4395 | -8/Materials | Evolved 2 slots: Utility x1, Weapon x1 4396 | -8/Materials | Identified exit to Factory 4396 | -8/Materials | Identified Exp. Sensor Array 4684 | -8/Materials | Identified exit to Storage 4813 | -8/Materials | Build established: Gunner 4843 | -8/Materials | Garrison activated, responded to threat 4868 | -8/Materials | Identified exit to Garrison 4870 | -8/Materials | Entered Garrison 4914 | -8/Garrison | Triggered checkpoint 4943 | -8/Garrison | Garrison Relay disabled 5088 | -8/Garrison | Triggered checkpoint 5129 | -8/Garrison | Destroyed 10 combat bots 5177 | -8/Garrison | Phase Generator disabled 5219 | -8/Garrison | Spotted B-75 Beast 5260 | -8/Garrison | Discovered new exit (range 10) 5320 | -8/Garrison | Lost 3 parts (1n2u) 5370 | -8/Garrison | Triggered checkpoint 5494 | -8/Garrison | Garrison Relay disabled 5569 | -8/Garrison | Garrison Relay disabled 5701 | -8/Garrison | Discovered new exit (range 10) 5710 | -8/Garrison | Triggered checkpoint 5786 | -8/Garrison | Build established: Tank 5922 | -8/Garrison | Garrison Relay disabled 5928 | -8/Garrison | Garrison Relay disabled 5938 | -8/Garrison | Garrison Relay disabled 5982 | -8/Garrison | Garrison Relay disabled 6016 | -8/Garrison | Garrison Relay disabled 6134 | -8/Garrison | Discovered new exit (range 15) 6185 | -8/Garrison | Triggered checkpoint 6602 | -8/Garrison | Triggered checkpoint 6624 | -8/Garrison | Installed Relay Interface Framework 6694 | -8/Garrison | Entered Materials 6964 | -8/Materials | Discovered exit to Factory (range 5) 7152 | -8/Materials | Discovered exit to Factory (range 6) 7191 | -8/Materials | Build established: Bothacker-Mutant 7273 | -8/Materials | Lost 4 allies 7418 | -8/Materials | Core integrity fell below 50% 7484 | -8/Materials | Identified exit to Garrison 7487 | -8/Materials | Entered Garrison 7567 | -8/Garrison | Triggered checkpoint 7627 | -8/Garrison | Garrison Relay disabled 7749 | -8/Garrison | Triggered checkpoint 7789 | -8/Garrison | Triggered checkpoint 7810 | -8/Garrison | Destroyed 7 combat bots 7869 | -8/Garrison | Discovered exit to Factory (range 10) 7957 | -8/Garrison | Triggered checkpoint 7983 | -8/Garrison | Garrison Relay disabled 8171 | -8/Garrison | Spotted B-75 Beast 8205 | -8/Garrison | Destroyed B-75 Beast 8320 | -8/Garrison | Core integrity fell below 20% 8446 | -8/Garrison | Triggered checkpoint 8621 | -8/Garrison | Triggered checkpoint 8663 | -8/Garrison | Garrison Relay disabled 8698 | -8/Garrison | Expanded RIF knowledge: Structural Interface 8759 | -8/Garrison | Discovered exit to Factory (range 10) 8833 | -8/Garrison | Entered Factory 8833 | -7/Factory | Evolved 2 slots: Utility x2 9292 | -7/Factory | Assembled infested ambush trap array 9346 | -7/Factory | Lost 7 parts (1p1n2u3w) 9358 | -7/Factory | Destroyed 7 combat bots 9955 | -7/Factory | Garrison activated, responded to threat 9998 | -7/Factory | Assembled infested ambush trap array 10317 | -7/Factory | Identified exit to Garrison 10319 | -7/Factory | Entered Garrison 10395 | -7/Garrison | Core integrity fell below 50% 10469 | -7/Garrison | Triggered checkpoint 10497 | -7/Garrison | Found embedded Infiltrators 10527 | -7/Garrison | Garrison Relay disabled 10611 | -7/Garrison | Triggered checkpoint 10611 | -7/Garrison | Triggered checkpoint 10685 | -7/Garrison | Triggered checkpoint 10721 | -7/Garrison | Triggered checkpoint 10743 | -7/Garrison | Garrison Relay disabled 10768 | -7/Garrison | Discovered new exit (range 11) 10809 | -7/Garrison | Expanded RIF knowledge: Hotswap 10925 | -7/Garrison | Triggered checkpoint 10995 | -7/Garrison | Triggered checkpoint 11039 | -7/Garrison | Triggered checkpoint 11052 | -7/Garrison | Garrison Relay disabled 11097 | -7/Garrison | Discovered new exit (range 11) 11121 | -7/Garrison | Entered Factory 11121 | -6/Factory | Accompanied by 3 allies 11121 | -6/Factory | Evolved 2 slots: Utility x2 11302 | -6/Factory | Discovered new exit (range 15) 11668 | -6/Factory | Sucked down chute 11668 | -6/Factory | Entered Waste 11683 | -6/Waste | EMP discharged 11683 | -6/Waste | System corruption reached 10% 11686 | -6/Waste | Spotted C-40 Crusher 11708 | -6/Waste | Spotted C-40 Crusher 11711 | -6/Waste | Allies destroyed C-40 Crusher 11723 | -6/Waste | 4 allies followed down the chute 11723 | -6/Waste | Spotted C-40 Crusher 11731 | -6/Waste | Allies destroyed C-40 Crusher 11738 | -6/Waste | Destroyed C-40 Crusher 11766 | -6/Waste | Lost 3 allies 11767 | -6/Waste | Spotted C-40 Crusher 11776 | -6/Waste | Spotted C-40 Crusher 11783 | -6/Waste | EMP discharged 11784 | -6/Waste | Spotted C-40 Crusher 11794 | -6/Waste | Allies destroyed C-40 Crusher 11827 | -6/Waste | Crushed by Compactor (1 part destroyed, 1 dropped) 11883 | -6/Waste | EMP discharged 11883 | -6/Waste | System corruption reached 30% 11911 | -6/Waste | Discovered new exit (range 11) 11926 | -6/Waste | Entered Factory 12142 | -6/Factory | P-60 Hacker assimilated allied Smith 5a 12471 | -6/Factory | Spotted B-75 Beast 12474 | -6/Factory | Identified exit to Garrison 12477 | -6/Factory | Entered Garrison 12477 | -6/Garrison | Accompanied by 2 allies 12545 | -6/Garrison | Found Relay Coupler [Proto] 12547 | -6/Garrison | Found Relay Coupler [Proto] 12737 | -6/Garrison | Triggered checkpoint 12796 | -6/Garrison | Garrison Relay disabled 12869 | -6/Garrison | Triggered checkpoint 12907 | -6/Garrison | Triggered checkpoint 12989 | -6/Garrison | Expanded RIF knowledge: Code Merge 13107 | -6/Garrison | Garrison Relay disabled 13169 | -6/Garrison | Triggered checkpoint 13183 | -6/Garrison | Triggered checkpoint 13211 | -6/Garrison | Spotted Striker 13211 | -6/Garrison | Spotted Striker 13295 | -6/Garrison | Allies destroyed Striker 13305 | -6/Garrison | Assimilated Striker with formatsys_high 13347 | -6/Garrison | Lost 6 allies 13369 | -6/Garrison | Triggered checkpoint 13543 | -6/Garrison | Triggered checkpoint 13564 | -6/Garrison | Triggered checkpoint 13628 | -6/Garrison | Build established: Botlord-Mutant 13638 | -6/Garrison | Lost 7 parts (1p1n2u3w) 13811 | -6/Garrison | Discovered new exit (range 10) 13853 | -6/Garrison | Triggered checkpoint 13994 | -6/Garrison | Garrison Relay disabled 14264 | -6/Garrison | Found Relay Coupler [Proto] 14443 | -6/Garrison | Triggered checkpoint 14471 | -6/Garrison | Discovered new exit (range 11) 14491 | -6/Garrison | Garrison Relay disabled 14580 | -6/Garrison | Garrison Relay disabled 14625 | -6/Garrison | Entered Factory 14625 | -5/Factory | Accompanied by 1 ally 14625 | -5/Factory | Evolved 2 slots: Utility x2 14793 | -5/Factory | Repaired Imp. Remote Datajack 14912 | -5/Factory | Discovered new exit (range 51) 14925 | -5/Factory | First assault squad dispatched 15016 | -5/Factory | Lost 4 parts (2n1u1w) 15095 | -5/Factory | Lost 3 allies 15097 | -5/Factory | System corruption reached 10% 15146 | -5/Factory | Lost 12 parts (1p1n6u4w) 15151 | -5/Factory | Core integrity fell below 50% 15177 | -5/Factory | Lost 3 allies 15196 | -5/Factory | Lost 3 parts (2u1w) 15532 | -5/Factory | Build established: Scavenger-Mutant 15607 | -5/Factory | Discovered new exit (range 15) 15649 | -5/Factory | Cargo convoy interrupted 15758 | -5/Factory | P-70 Sage assimilated allied Slayer 6a 15805 | -5/Factory | Lost 5 parts (1p2u2w) 15860 | -5/Factory | Entered Upper Caves 16182 | -5/Upper Caves | Build established: Botlord-Tank 16272 | -5/Upper Caves | Learned Factory terminal intel 16275 | -5/Upper Caves | Discovered new exit (range 15) 16294 | -5/Upper Caves | Entered another Upper Caves area 16354 | -5/Upper Caves | Lost 6 parts (2n1u3w) 16388 | -5/Upper Caves | Discovered new exit (range 6) 16399 | -5/Upper Caves | Entered Factory 16399 | -4/Factory | Evolved 2 slots: Utility x2 16400 | -4/Factory | Loaded intel: 28 terminal locations 16602 | -4/Factory | Found Quantum Capacitor 16622 | -4/Factory | Build established: Botlord-Mutant 17123 | -4/Factory | Identified exit to Garrison 17125 | -4/Factory | Entered Garrison 17324 | -4/Garrison | Triggered checkpoint 17371 | -4/Garrison | Lost 4 allies 17411 | -4/Garrison | Triggered checkpoint 17467 | -4/Garrison | Garrison Relay disabled 17488 | -4/Garrison | Garrison Relay disabled 17511 | -4/Garrison | Build established: Botlord-Gunner 17613 | -4/Garrison | Triggered checkpoint 17763 | -4/Garrison | Discovered new exit (range 10) 17783 | -4/Garrison | Triggered checkpoint 17805 | -4/Garrison | Found embedded Infiltrators 17889 | -4/Garrison | Garrison Relay disabled 17955 | -4/Garrison | Build established: Botlord-Mutant 17980 | -4/Garrison | Triggered checkpoint 18025 | -4/Garrison | Triggered checkpoint 18172 | -4/Garrison | Discovered new exit (range 10) 18183 | -4/Garrison | Triggered checkpoint 18207 | -4/Garrison | Garrison Relay disabled 18440 | -4/Garrison | Expanded RIF knowledge: Command Fork 18452 | -4/Garrison | Discovered new exit (range 12) 18471 | -4/Garrison | Garrison Relay disabled 18492 | -4/Garrison | Spotted B-75 Beast 18495 | -4/Garrison | Assimilated Beast 7a with formatsys_high 18594 | -4/Garrison | Rewired B-86 Titan 18628 | -4/Garrison | Rewired B-86 Titan 18896 | -4/Garrison | Entered Factory 18896 | -4/Factory | Accompanied by 3 allies 18927 | -4/Factory | Found Quantum Capacitor 19117 | -4/Factory | Build established: Botlord-Gunner 19189 | -4/Factory | First assault squad dispatched 19243 | -4/Factory | Lost 3 parts (1u2w) 19419 | -4/Factory | Lost 3 parts (2n1w) 19425 | -4/Factory | Lost 6 allies 19454 | -4/Factory | Core integrity fell below 50% 19525 | -4/Factory | Discovered new exit (range 7) 19537 | -4/Factory | Entered Upper Caves 19537 | -4/Upper Caves | Accompanied by 1 ally 19571 | -4/Upper Caves | Lost 3 parts (1u2w) 19793 | -4/Upper Caves | Attracted the attention of an 0b10 checkpoint 19814 | -4/Upper Caves | Build established: Botlord-Mutant 19877 | -4/Upper Caves | Learned Research terminal intel 19881 | -4/Upper Caves | Learned location of Armory (-3) 20011 | -4/Upper Caves | Discovered new exit (range 5) 20034 | -4/Upper Caves | Entered another Upper Caves area 20034 | -4/Upper Caves | Accompanied by 2 allies 20048 | -4/Upper Caves | Identified exit to Warlord 20071 | -4/Upper Caves | Attracted the attention of an 0b10 checkpoint 20206 | -4/Upper Caves | Build established: Botlord-Skirmisher 20269 | -4/Upper Caves | Discovered new exit (range 5) 20276 | -4/Upper Caves | Entered Research 20276 | -3/Research | Accompanied by 3 allies 20276 | -3/Research | Evolved 2 slots: Power x1, Utility x1 20277 | -3/Research | Loaded intel: 23 terminal locations 20278 | -3/Research | Spotted B-86 Titan 20289 | -3/Research | Destroyed B-86 Titan 20448 | -3/Research | Identified exit to Garrison 20450 | -3/Research | Entered Garrison 20450 | -3/Garrison | Accompanied by 3 allies 20509 | -3/Garrison | Expanded RIF knowledge: Signal Jamming 20551 | -3/Garrison | Spotted Executioner 20553 | -3/Garrison | Spotted Executioner 20574 | -3/Garrison | Destroyed Executioner 20581 | -3/Garrison | Destroyed Executioner 20596 | -3/Garrison | Lost 3 allies 20657 | -3/Garrison | Lost 4 parts (2n2u) 20673 | -3/Garrison | Rewired Executioner 20809 | -3/Garrison | Garrison Relay disabled 20858 | -3/Garrison | Spotted B-86 Titan 20863 | -3/Garrison | Assimilated Titan 8a with formatsys_high 20878 | -3/Garrison | Triggered checkpoint 20899 | -3/Garrison | Triggered checkpoint 20904 | -3/Garrison | Triggered checkpoint 20923 | -3/Garrison | Build established: Botlord-Gunner 20944 | -3/Garrison | Lost 3 allies 20955 | -3/Garrison | Found Hvy. Reflective Plating 21050 | -3/Garrison | Expanded RIF knowledge: Coupler Efficiency 21074 | -3/Garrison | Triggered checkpoint 21152 | -3/Garrison | Garrison Relay disabled 21327 | -3/Garrison | Discovered new exit (range 20) 21491 | -3/Garrison | Garrison Relay disabled 21632 | -3/Garrison | Discovered new exit (range 10) 21704 | -3/Garrison | Entered Research 21704 | -3/Research | Accompanied by 1 ally 21776 | -3/Research | Discovered new exit (range 8) 22015 | -3/Research | Found Quantum Capacitor 22180 | -3/Research | Allied Derelicts emerged from ambush trap array 22291 | -3/Research | Identified exit to Garrison 22345 | -3/Research | Entered Garrison 22345 | -3/Garrison | Accompanied by 5 allies 22415 | -3/Garrison | Triggered checkpoint 22436 | -3/Garrison | Spotted Striker 22438 | -3/Garrison | Spotted Striker 22472 | -3/Garrison | Garrison Relay disabled 22505 | -3/Garrison | Lost 4 allies 22553 | -3/Garrison | Destroyed Striker 22563 | -3/Garrison | Destroyed Striker 22588 | -3/Garrison | Lost 8 parts (3p1n3u1w) 22743 | -3/Garrison | Triggered checkpoint 22746 | -3/Garrison | Triggered checkpoint 22881 | -3/Garrison | Expanded RIF knowledge: Autoassimilate 22952 | -3/Garrison | Discovered new exit (range 12) 22963 | -3/Garrison | Triggered checkpoint 22968 | -3/Garrison | Garrison Relay disabled 23041 | -3/Garrison | Triggered checkpoint 23058 | -3/Garrison | Discovered new exit (range 3) 23149 | -3/Garrison | Triggered checkpoint 23236 | -3/Garrison | Core integrity fell below 50% 23280 | -3/Garrison | Discovered new exit (range 3) 23301 | -3/Garrison | Triggered checkpoint 23332 | -3/Garrison | Garrison Relay disabled 23449 | -3/Garrison | Garrison Relay disabled 23455 | -3/Garrison | Garrison Relay disabled 23479 | -3/Garrison | Garrison Relay disabled 23526 | -3/Garrison | Garrison Relay disabled 23616 | -3/Garrison | Entered Research 23616 | -2/Research | Accompanied by 3 allies 23616 | -2/Research | Evolved 2 slots: Utility x2 23637 | -2/Research | Build established: Botlord-Mutant 23772 | -2/Research | Fabricated Lgt. Quantum Reactor? 24111 | -2/Research | Discovered new exit (range 11) 24219 | -2/Research | Identified exit to Garrison 24221 | -2/Research | Entered Garrison 24221 | -2/Garrison | Accompanied by 5 allies 24326 | -2/Garrison | Spotted B-90 Cyclops 24381 | -2/Garrison | Lost 10 allies 24416 | -2/Garrison | Assimilated Cyclops 9a with formatsys_high 24445 | -2/Garrison | Lost 11 parts (2p3n6u) 24446 | -2/Garrison | Lost 3 allies 24475 | -2/Garrison | Triggered checkpoint 24507 | -2/Garrison | Expanded RIF knowledge: Zone Cloak 24536 | -2/Garrison | Build established: Botlord-Tank 24652 | -2/Garrison | Triggered checkpoint 24674 | -2/Garrison | Garrison Relay disabled 24742 | -2/Garrison | Discovered new exit (range 10) 24825 | -2/Garrison | Triggered checkpoint 24855 | -2/Garrison | Triggered checkpoint 24918 | -2/Garrison | Expanded RIF knowledge: Program Shield 25011 | -2/Garrison | Discovered new exit (range 11) 25017 | -2/Garrison | Triggered checkpoint 25028 | -2/Garrison | Garrison Relay disabled 25088 | -2/Garrison | Spotted B-75 Beast 25094 | -2/Garrison | Rewired B-90 Cyclops 25111 | -2/Garrison | Allies destroyed B-75 Beast 25229 | -2/Garrison | Entered Access 25229 | -1/Access | Accompanied by 7 allies 25229 | -1/Access | Evolved 2 slots: Propulsion x2 25266 | -1/Access | Garrison activated, responded to threat 25307 | -1/Access | Lost 3 allies 25398 | -1/Access | Lost 3 allies 25729 | -1/Access | First assault squad dispatched 25889 | -1/Access | Lost 3 allies 26101 | -1/Access | Lost 3 parts (2u1w) 26101 | -1/Access | Lost 8 allies 26184 | -1/Access | System corruption reached 10% 26293 | -1/Access | Core integrity fell below 50% 26357 | -1/Access | Identified exit to Garrison 26358 | -1/Access | Entered Garrison 26376 | -1/Garrison | Lost 19 parts (2p6n9u2w) 26403 | -1/Garrison | Core integrity fell below 20% 26404 | -1/Garrison | Expanded RIF knowledge: Crosswire 26428 | -1/Garrison | Spotted B-99 Colossus 26428 | -1/Garrison | Destroyed by G-73 Enforcer with Phase Gun Last Messages --------------- 26387_ C-30 ARC bursts open, deploying its payload. 26387_ S-43 Plague unfolds itself. 26392_ RIF reveals location of phase wall. Garrison Door activated. 26397_ Adv. ECM Suite destroyed. 26398_ System corrupted: Energy discharge (-21). Initiating installation procedure... 26404_ Expanded RIF knowledge: Crosswire. 26404_ Converted Relay Coupler [Grunt] to Relay Coupler [C]. 26404_ Converted Relay Coupler [Swarmer] to Relay Coupler [C]. 26404_ Converted Relay Coupler [Grunt] to Relay Coupler [C]. 26404_ Converted Relay Coupler [Brawler] to Relay Coupler [C]. 26406_ Slammed into S-43 Plague. 26408_ Destabilizing: System interference. 26408_ Adv. Signal Interpreter temporarily disabled. 26408_ Adv. Targeting Computer temporarily disabled. 26415_ Acquired 117 matter. 26416_ System corrupted: Matter fused (-8). 26426_ RIF reveals location of phase wall. 26428_ Relay Coupler [C] destroyed. Map ----- +----------------------------------------------------+ | ?????????????????????????#" "#?????????????????? | | ?????????????????????????#" "#?????######??????? | | ?????????????????????????#" "#?????# #??????? | | ?????????????????????????#" ""#?????# #??????? | | ??????????????????????????# #???????# #??????? | | ??????????????????????????# ##???????# ###??????? | | ??????????????????????????# ########## #????????? | | ??????????????????????????# ## + #????????? | | ??????????????????????????# ## ####### #????????? | | ??????????????????????????# ## #?????# #????????? | | ??????????????????????????# ## #?????# #????????? | | ??????????????????????#???# ## #?????# #????????? | | ??????????????????????# ###+##+####### #????????? | | ??????????????????????# ########?? | | ??????????????????????# + "#?? | | ??????????????????????# #####+##### #### ##"T"#?? | | ??????????????????????# ????# #???# #??# ######?? | | ??????????????????????# ????# #???# #??# #??????? | | ??????????????????????T ##### ##### #??#"#??????? | | ?????????????????????## + + #?##+##?????? | | ??????????????????????# ##### ##### #?# " #?????? | | ??????????????????????#pp????# #???# ### ####### | | ???????????## ##""""## ##??# #???# ^ | | ???????????# p #### #???# ############ | | ??????????s + #???# #?????????#"" | | ?????????? s @######???# "?????????### | | ???????????# ## ## #????????# T???????????? | | ????????????????# ????# #????????#""???????????? | | ????????????????????? "????????###???????????? | | ???????????????????? "??????????????????????? | | ???????????????????Bs "??????????????????????? | | ?????????????????? "??????????????????????? | | ????????????????? g ## #??????????????????????? | | ????????????????# g g?# #??????????????????????? | | ???????????????? g ?? ???????????????????????? | | ??????????????? ?? ???????????????????????? | | ?????????????? ??? ???????????????????????? | | ????????????????#"???## #???????????????????????? | | ??????????????????????# ????????????????????????? | | ??????????????????????# ????????????????????????? | | ??????????????????????? ????????????????????????? | | ?????????????????????????????????????????????????? | | ?????????????????????????????????????????????????? | | ?????????????????????????????????????????????????? | | ?????????????????????????????????????????????????? | | ?????????????????????????????????????????????????? | | ?????????????????????????????????????????????????? | | ?????????????????????????????????????????????????? | | ?????????????????????????????????????????????????? | | ?????????????????????????????????????????????????? | +----------------------------------------------------+ Best States ------------- Heat Dissipation 127 Energy Generation 45 Energy Capacity 1110 Matter Stores 300 Matter Capacity 300 Sight Range 23 Robot Scan Range 20 Terrain Scan Range 16 Terrain Scan Density 85 ECM Strength 2 Power Amplification 20 Additional Mass Support 9 EM Shielding 2 Armor Coverage 1200 Resistance: TH 25 Core Shielding 30 Propulsion Shielding 33 Point Defense Rating 480 Phase Shifting 5 Evasion (%) 55 Targeting Accuracy 8 Recoil Reduction 4 Particle Charging 25 Defensive Hacking 14 Relay Coupler Types 10 Relay Coupler Value 404 Trap Extractor Capacity 6 Item Schematics ----------------- None Robot Schematics ------------------ None Fabricated ------------ Lgt. Quantum Reactor | x2 | -2/Research | Preloaded Alien Tech Used ----------------- None Achievements -------------- Ambidextrous Beloved Factory Defaults No Explosion For You Pwned Challenges ------------ None Game ------ Seed MicroTachyonShredder Manual? 0 Play Time 05:26:44 Cumulative 167.5 hours Start 2024.05.04 @ 14:42:19 End 2024.05.04 @ 21:09:58 Sessions 1 Manual Loads 0 Difficulty Rogue Special Mode None Game No. 143 Rogue 143 Adventurer 0 Explorer 0 Win Type - Total 3 Types 2/0/0/1/0/0/0/0/0 Lore% 57 Gallery% 76 Achievement% 59 Wizard Run 0 Options --------- Layout 2 ASCII 0 Keyboard 1 Movement Numpad Keybinds 0 Fullscreen 1 Font 32/SmallcapsGlow Map View 77x44 Zoom Use 0% Tactical HUD 1 Map Filters NONE Filters NONE Steam 1 RUN: 4f65d9b9-774e-49ad-9cb5-f1baa3424839